fUST/lending_fUST_20260317
["ID","MTS","AMOUNT","RATE_DAILY","PERIOD"]
[408476631,1773709790577,-221.87113109,0.00035067,120]
[408476632,1773709790596,-221.87113109,0.00035067,120]
[408476633,1773709790616,-221.87113109,0.00035067,120]
[408476634,1773709790636,-221.87113109,0.00035067,120]
[408476635,1773709790656,-221.87113109,0.00035067,120]
[408476636,1773709790675,-171.36,0.00035067,120]
[408476637,1773709790696,-278.17791587,0.00035067,120]
[408476638,1773709790717,-278.17791587,0.00035067,120]
[408476639,1773709790737,-278.17791587,0.00035067,120]
[408476640,1773709790758,-528.36067216,0.00035067,120]
[408476641,1773709790782,-27133.61,0.00035067,120]
[408476642,1773709790803,-27133.61,0.00035067,120]
[408476643,1773709790824,-27133.61,0.00035067,120]
[408476644,1773709790853,-11944.47128961,0.00035067,120]
[408476646,1773709828567,5000.0,0.0001,120]
[408476668,1773709832207,-173.41,2.1e-05,2]
[408476670,1773709832217,-173.41,2.2e-05,2]
[408476672,1773709832227,-1200.0,5.905e-05,2]
[408476675,1773709832239,-300.0,5.906e-05,2]
[408476676,1773709832249,-300.0,5.906e-05,2]
[408476678,1773709832262,-300.0,5.906e-05,2]
[408476680,1773709832271,-300.0,5.906e-05,2]
[408476683,1773709832281,-2310.28,5.908e-05,2]
[408476686,1773709832295,-658.06644971,5.908e-05,2]
[408476740,1773709838576,-31.65355029,5.908e-05,2]
[408476741,1773709838587,-209.08950344,5.989e-05,2]
[408476742,1773709838597,-175.97319657,6.4e-05,2]
[408476743,1773709838608,-304.72505418,6.4e-05,2]
[408476744,1773709838620,-265.10954801,6.4e-05,2]
[408476745,1773709838631,-78.44914754,6.4e-05,2]
[408476746,1773709838650,-161.89997783,6.4e-05,2]
[408476747,1773709838659,-1719.46594996,6.4e-05,2]
[408476748,1773709838668,-392.16171,6.425e-05,2]
[408476749,1773709838678,-1680.0,6.496e-05,2]
[408476750,1773709838687,-420.0,6.497e-05,2]
[408476751,1773709838696,-420.0,6.497e-05,2]
[408476752,1773709838706,-420.0,6.497e-05,2]
[408476753,1773709838715,-447.15123853,6.533e-05,2]
[408476754,1773709838730,-52.84876147,6.533e-05,2]
[408476755,1773709838739,-500.0,6.533e-05,2]
[408476756,1773709838748,-500.0,6.533e-05,2]
[408476757,1773709838757,-501.93364253,6.533e-05,2]
[408476758,1773709838767,-500.0,6.533e-05,2]
[408476759,1773709838776,-500.0,6.533e-05,2]
[408476760,1773709838785,-500.0,6.533e-05,2]
[408476761,1773709838794,-219.4684572,6.659e-05,2]
[408476762,1773709838804,-3307.0404412,6.659e-05,2]
[408476763,1773709838813,-285.28255073,6.659e-05,2]
[408476764,1773709838824,-1112.97774585,6.659e-05,2]
[408476788,1773709840903,-2238.51698482,6.659e-05,2]
[408476789,1773709840913,-339.0,6.659e-05,2]
[408476790,1773709840923,-339.0,6.659e-05,2]
[408476791,1773709840933,-239.80001356,6.659e-05,2]
[408476792,1773709840960,-99.19998644,6.659e-05,2]
[408476793,1773709840970,-339.0,6.659e-05,2]
[408476794,1773709840980,-1000.0,6.659e-05,2]
[408476795,1773709840990,-876.96828665,6.659e-05,2]
[408476796,1773709841002,-739.91096068,6.659e-05,2]
[408476809,1773709843594,-15.69916207,6.659e-05,2]
[408476811,1773709843604,-166.0,6.659e-05,2]
[408476813,1773709843615,-339.0,6.659e-05,2]
[408476815,1773709843626,-339.0,6.659e-05,2]
[408476817,1773709843637,-339.0,6.659e-05,2]
[408476819,1773709843651,-339.0,6.659e-05,2]
[408476821,1773709843661,-339.0,6.659e-05,2]
[408476823,1773709843671,-339.0,6.659e-05,2]
[408476825,1773709843682,-339.0,6.659e-05,2]
[408476827,1773709843693,-339.0,6.659e-05,2]
[408476829,1773709843702,-392.16171,6.695e-05,2]
[408476831,1773709843713,-1718.80697447,6.76e-05,2]
[408476833,1773709843726,-4297.0876543,6.76e-05,2]
[408476835,1773709843737,-1016.05025099,6.8e-05,2]
[408476836,1773709843747,-500.0,6.803e-05,2]
[408476837,1773709843757,-544.89193753,6.935e-05,2]
[408476838,1773709843768,-260.98867768,6.937e-05,2]
[408476839,1773709843779,-392.16171,6.966e-05,2]
[408476840,1773709843788,-500.0,6.977e-05,2]
[408476841,1773709843797,-303.30658273,6.977e-05,2]
[408476842,1773709843807,-500.0,6.977e-05,2]
[408476843,1773709843816,-581.3248066,6.977e-05,2]
[408476844,1773709843826,-430.55,6.977e-05,2]
[408476845,1773709843835,-198.75148932,6.978e-05,2]
[408476846,1773709843845,-445.202766,6.978e-05,2]
[408476847,1773709843854,-500.0,6.978e-05,2]
[408476848,1773709843864,-162.380719,6.978e-05,2]
[408476850,1773709843874,-500.0,6.978e-05,2]
[408476852,1773709843883,-500.0,6.978e-05,2]
[408476854,1773709843896,-500.0,6.978e-05,2]
[408476856,1773709843906,-500.0,6.978e-05,2]
[408476858,1773709843916,-192.12628557,6.978e-05,2]
[408476860,1773709843925,-500.0,6.978e-05,2]
[408476862,1773709843934,-500.0,6.978e-05,2]
[408476864,1773709843944,-500.0,6.978e-05,2]
[408476866,1773709843953,-500.0,6.978e-05,2]
[408476868,1773709843962,-500.0,6.978e-05,2]
[408476871,1773709843972,-500.0,6.978e-05,2]
[408476873,1773709843983,-500.0,6.978e-05,2]
[408476875,1773709844005,-500.0,6.978e-05,2]
[408476876,1773709844024,-500.0,6.978e-05,2]
[408476879,1773709844034,-500.0,6.978e-05,2]
[408476881,1773709844043,-500.0,6.978e-05,2]
[408476883,1773709844053,-500.0,6.978e-05,2]
[408476885,1773709844062,-500.0,6.978e-05,2]
[408476887,1773709844071,-2150.738,6.978e-05,2]
[408476889,1773709844080,-250.0,6.978e-05,2]
[408476890,1773709844090,-250.0,6.978e-05,2]
[408476893,1773709844100,-250.0,6.978e-05,2]
[408476895,1773709844110,-250.0,6.978e-05,2]
[408476897,1773709844119,-618.78455583,6.978e-05,2]
[408476900,1773709844142,-4758.06044417,6.978e-05,2]
[408476902,1773709844153,-250.0,6.978e-05,2]
[408476904,1773709844162,-250.0,6.978e-05,2]
[408476906,1773709844172,-250.0,6.978e-05,2]
[408476908,1773709844181,-250.0,6.978e-05,2]
[408476910,1773709844191,-250.0,6.978e-05,2]
[408476912,1773709844201,-250.0,6.978e-05,2]
[408476914,1773709844210,-250.0,6.978e-05,2]
[408476916,1773709844220,-250.0,6.978e-05,2]
[408476918,1773709844230,-250.0,6.978e-05,2]
[408476920,1773709844240,-537.6845,6.978e-05,2]
[408476922,1773709844249,-249.97934187,6.978e-05,2]
[408476923,1773709844259,-214.78211377,6.978e-05,2]
[408476925,1773709844269,-500.0,6.993e-05,2]
[408476927,1773709844279,-403.97180996,6.993e-05,2]
[408476929,1773709844289,-132.50479049,6.993e-05,2]
[408476931,1773709844301,-367.49520951,6.993e-05,2]
[408476933,1773709844311,-500.0,6.993e-05,2]
[408476935,1773709844322,-500.0,6.993e-05,2]
[408476937,1773709844342,-500.0,6.993e-05,2]
[408476940,1773709844355,-528.56936024,6.993e-05,2]
[408476941,1773709844364,-408.69797207,6.993e-05,2]
[408476944,1773709844374,-500.0,6.993e-05,2]
[408476946,1773709844383,-212.25612575,6.993e-05,2]
[408476947,1773709844392,-500.0,6.993e-05,2]
[408476949,1773709844405,-500.0,6.993e-05,2]
[408476951,1773709844415,-500.0,6.993e-05,2]
[408476954,1773709844434,-41.98133243,6.993e-05,2]
[408476956,1773709844455,-458.01866757,6.993e-05,2]
[408476958,1773709844465,-500.0,6.993e-05,2]
[408476960,1773709844474,-868.01219645,7e-05,2]
[408476962,1773709844485,-131.98780355,7e-05,2]
[408476964,1773709844495,-507.55393632,7.014e-05,2]
[408476966,1773709844507,-427.77401337,7.014e-05,2]
[408477006,1773709846512,-74361.20132264,7.014e-05,2]
[408477012,1773709846731,-1156.19642447,7.014e-05,2]
[408477013,1773709850584,5000.0,0.0001,120]
[408477092,1773710830691,151.0,0.0001,120]
[408477093,1773710844550,151.0,6e-05,30]
[408477094,1773710858783,151.0,6e-05,60]
[408477095,1773710874156,151.0,3e-05,10]
[408477096,1773710886012,151.0,2.001e-05,2]
[408477098,1773711024355,-3187.81081078,2.162e-05,2]
[408477130,1773711032459,-1812.18918922,2.162e-05,2]
[408477132,1773711032468,-748.28795945,2.184e-05,2]
[408477134,1773711032478,-5000.0,2.206e-05,2]
[408477136,1773711032487,-1200.0,2.226e-05,2]
[408477138,1773711032497,-300.0,2.227e-05,2]
[408477140,1773711032508,-300.0,2.227e-05,2]
[408477142,1773711032518,-223.00207508,2.227e-05,2]
[408477144,1773711032529,-76.99792492,2.227e-05,2]
[408477146,1773711032539,-423.82495699,2.449e-05,2]
[408477149,1773711032550,-783.17504301,2.449e-05,2]
[408477151,1773711032559,-420.0,2.45e-05,2]
[408477153,1773711032568,-300.0,2.45e-05,2]
[408477155,1773711032577,-587.0,2.695e-05,2]
[408477156,1773711032587,-250.0,2.724e-05,2]
[408477158,1773711032595,-203.70829083,2.964e-05,2]
[408477179,1773711038598,-5000.0,2.934e-05,2]
[408477180,1773711038608,-619.29170917,2.964e-05,2]
[408477181,1773711038620,-618.0,3.261e-05,2]
[408477182,1773711038631,-4531.02045501,5e-05,2]
[408477183,1773711038640,-9245.01087178,5.1e-05,2]
[408477184,1773711038650,-3547.63106461,5.2e-05,2]
[408477185,1773711038662,-6796.7773396,5.2e-05,2]
[408477186,1773711038675,-11190.67360228,5.3e-05,2]
[408477187,1773711038684,-11127.11160777,5.4e-05,2]
[408477188,1773711038696,-316.69432895,5.4e-05,2]
[408477189,1773711038706,-289.69284834,6.2e-05,2]
[408477190,1773711038715,-93.37613589,6.2e-05,2]
[408477191,1773711038727,-473.8817973,6.2e-05,2]
[408477192,1773711038738,-573.01951752,6.2e-05,2]
[408477193,1773711038747,-48.38152248,6.2e-05,2]
[408477274,1773711040947,-472.61623725,6.2e-05,2]
[408477275,1773711040958,-89.44507925,6.2e-05,2]
[408477330,1773711043859,-60.96766628,6.2e-05,2]
[408477332,1773711043868,-151.10691867,6.2e-05,2]
[408477334,1773711043877,-151.32970054,6.2e-05,2]
[408477336,1773711043886,-360.24743815,6.295e-05,2]
[408477338,1773711043895,-15397.55554094,6.295e-05,2]
[408477342,1773711043918,-4646.28184336,6.295e-05,2]
[408477344,1773711043931,-15386.09844076,6.295e-05,2]
[408477615,1773711046676,-2488.27100596,6.138e-05,2]
[408477616,1773711046687,-23548.4493156,6.295e-05,2]
[408477623,1773711046818,-6757.87952219,6.295e-05,2]
[408477624,1773711046830,-5283.43961685,6.295e-05,2]
[408477625,1773711046862,-3537.00304111,6.295e-05,2]
[408477691,1773712231590,-783.18772249,2.06e-05,2]
[408477693,1773712231601,-1165.70125005,2.06e-05,2]
[408477696,1773712231622,-3051.11102746,2.06e-05,2]
[408477698,1773712231634,-559.04849855,2.081e-05,2]
[408477701,1773712231644,-321.90845973,2.102e-05,2]
[408477704,1773712231655,-453.5741297,2.292e-05,2]
[408477706,1773712231667,-239.553961,2.537e-05,2]
[408477710,1773712231676,-239.553961,2.644e-05,2]
[408477713,1773712231686,-239.553961,2.751e-05,2]
[408477715,1773712231695,-239.553961,2.858e-05,2]
[408477718,1773712231705,-250.0,2.91e-05,2]
[408477720,1773712231714,-239.553961,2.964e-05,2]
[408477722,1773712231724,-239.553961,3.071e-05,2]
[408477724,1773712231733,-944.0,3.097e-05,2]
[408477725,1773712231743,-222.831603,5.941e-05,2]
[408477726,1773712231752,-231.4898447,5.941e-05,2]
[408477727,1773712231762,-300.0,6.003e-05,2]
[408477728,1773712231772,-300.0,6.004e-05,2]
[408477729,1773712231782,-160.0,6.006e-05,3]
[408477730,1773712231792,-300.0,6.099e-05,2]
[408477731,1773712231802,-161.85362676,6.1e-05,2]
[408477732,1773712231812,-153.90040751,6.1e-05,2]
[408477733,1773712231822,-162.49811931,6.1e-05,2]
[408477734,1773712231832,-160.45070098,6.1e-05,2]
[408477735,1773712231841,-3730.37048752,6.159e-05,2]
[408477753,1773712237766,-35586.02474395,6.159e-05,2]
[408477754,1773712237778,-4783.18568281,6.159e-05,2]
[408477755,1773712237789,-22933.78505513,6.159e-05,2]
[408477756,1773712237800,-18613.46250149,6.159e-05,2]
[408477757,1773712237820,-405.21519249,6.159e-05,2]
[408477811,1773712240229,-3428.4456557,6.159e-05,2]
[408477812,1773712240241,-495.840245,6.159e-05,2]
[408477813,1773712240258,-341.44406342,6.159e-05,2]
[408477815,1773712240283,-266.22303198,6.159e-05,2]
[408477836,1773712245023,-760.69687761,6.159e-05,2]
[408477846,1773712246039,-8103.97697068,6.159e-05,2]
[408477847,1773712246051,-1209.79618404,6.159e-05,2]
[408477852,1773712793323,1618.0,0.0001,120]
[408477853,1773712797190,-2881.34882359,2.715e-05,2]
[408477854,1773712797212,-5000.0,2.742e-05,2]
[408477855,1773712797236,-300.0,2.769e-05,2]
[408477856,1773712797259,-1818.65117641,2.77e-05,2]
[408477857,1773712807365,-500.0,2.715e-05,2]
[408477858,1773712807391,-340.41125251,2.715e-05,2]
[408477859,1773712807414,-3181.34882359,2.77e-05,2]
[408477860,1773712919675,-3137.08574133,3.64e-05,2]
[408477861,1773712919704,-5000.0,3.677e-05,2]
[408477911,1773713431799,-1100.15692184,4.874e-05,2]
[408477914,1773713431811,-2463.57596477,4.874e-05,2]
[408477919,1773713431851,-773.62206646,4.874e-05,2]
[408477952,1773713437934,-662.64504693,4.874e-05,2]
[408477953,1773713437945,-264.0,5.858e-05,2]
[408477954,1773713437954,-177.52588107,5.858e-05,2]
[408477955,1773713437966,-122.47411893,5.858e-05,2]
[408477956,1773713437976,-277.0,5.858e-05,2]
[408477957,1773713437986,-1200.0,5.858e-05,2]
[408477958,1773713437995,-1670.54836595,5.859e-05,2]
[408477962,1773713443042,-6757.87952219,5.8e-05,2]
[408477963,1773713443051,-13906.49925971,5.859e-05,2]
[408477964,1773713443147,-1107.9990059,5.859e-05,2]
[408477984,1773713445976,-5000.0,5.742e-05,2]
[408477986,1773713445986,-16900.28028668,5.859e-05,2]
[408477987,1773713446187,-10588.17351204,5.859e-05,2]
[408478001,1773714405051,-5000.0,2.158e-05,2]
[408478002,1773714405071,-2785.96305814,2.18e-05,2]
[408478003,1773714405091,-247.0,2.29e-05,2]
[408478004,1773714405112,-300.0,2.291e-05,2]
[408478005,1773714405131,-1667.03694186,2.292e-05,2]
[408478006,1773714411328,-5000.0,2.269e-05,2]
[408478007,1773714411349,-896.43417264,2.292e-05,2]
[408478008,1773714411371,-420.0,2.52e-05,2]
[408478009,1773714411391,-361.90883682,2.723e-05,2]
[408478010,1773714411417,-587.0,2.772e-05,2]
[408478033,1773714631961,-269.08724583,5.322e-05,2]
[408478035,1773714631972,-1966.11974943,5.322e-05,2]
[408478041,1773714632016,-1163.34750901,5.322e-05,2]
[408478105,1773714638075,-1601.44549573,5.322e-05,2]
[408478106,1773714638084,-164.6478486,5.371e-05,2]
[408478107,1773714638093,-5000.0,5.376e-05,2]
[408478108,1773714638103,-196.4503422,5.484e-05,2]
[408478109,1773714638112,-32192.45455478,5.559e-05,2]
[408478110,1773714638129,-1879.31823386,5.559e-05,2]
[408478113,1773714640655,-156.78775914,5.559e-05,2]
[408478119,1773714643279,-12724.33182033,5.559e-05,2]
[408478120,1773714643436,-20682.0,5.559e-05,2]
[408478121,1773714643447,-2620.42428364,5.559e-05,2]
[408478122,1773714643480,-1098.92497976,5.559e-05,2]
[408478126,1773714646288,-5927.70813194,5.503e-05,2]
[408478127,1773714646298,-4711.34242479,5.503e-05,2]
[408478128,1773714646314,-288.65757521,5.503e-05,2]
[408478129,1773714646324,-58346.20043752,5.559e-05,2]
[408478258,1773715838283,-5000.0,4.202e-05,2]
[408478259,1773715838293,-5000.0,4.244e-05,2]
[408478260,1773715838302,-1200.0,4.286e-05,2]
[408478261,1773715838312,-300.0,4.37e-05,2]
[408478262,1773715838321,-300.0,4.37e-05,2]
[408478263,1773715838331,-300.0,4.37e-05,2]
[408478265,1773715838340,-1502.7025343,4.508e-05,2]
[408478267,1773715838350,-413.0,4.715e-05,2]
[408478269,1773715838361,-227.0,4.807e-05,2]
[408478271,1773715838370,-420.0,4.807e-05,2]
[408478273,1773715838381,-324.7093095,4.908e-05,2]
[408478275,1773715838391,-587.0,5.288e-05,2]
[408478277,1773715838400,-500.0,5.5e-05,2]
[408478279,1773715838410,-5769.48412964,5.5e-05,2]
[408478281,1773715838426,-2024.24027476,5.503e-05,2]
[408478284,1773715838451,-5328.00266527,5.503e-05,2]
[408478286,1773715838461,-500.0,5.533e-05,2]
[408478288,1773715838470,-500.0,5.533e-05,2]
[408478290,1773715838479,-545.3434223,5.533e-05,2]
[408478292,1773715838489,-500.0,5.533e-05,2]
[408478294,1773715838498,-452.32911314,5.533e-05,2]
[408478296,1773715838507,-500.0,5.533e-05,2]
[408478298,1773715838517,-500.0,5.533e-05,2]
[408478300,1773715838526,-1294.54473273,5.602e-05,2]
[408478302,1773715838537,-500.0,5.673e-05,2]
[408478304,1773715838548,-500.0,5.673e-05,2]
[408478305,1773715838558,-500.0,5.673e-05,2]
[408478307,1773715838567,-500.0,5.673e-05,2]
[408478309,1773715838576,-500.0,5.673e-05,2]
[408478311,1773715838585,-500.0,5.673e-05,2]
[408478314,1773715838595,-500.0,5.673e-05,2]
[408478316,1773715838605,-500.0,5.673e-05,2]
[408478318,1773715838615,-500.0,5.673e-05,2]
[408478319,1773715838625,-253.18585926,5.673e-05,2]
[408478321,1773715838634,-8733.15519526,5.7e-05,2]
[408478324,1773715838646,-5170.79860955,5.7e-05,2]
[408478326,1773715838658,-10661.86515255,5.7e-05,2]
[408478396,1773715840855,-476.29115748,4.16e-05,2]
[408478398,1773715840867,-4347.6310309,4.16e-05,2]
[408478403,1773715840909,-176.07781162,4.16e-05,2]
[408478405,1773715840918,-1010.88870757,5.643e-05,2]
[408478408,1773715840929,-1947.10203362,5.643e-05,2]
[408478485,1773715846339,-30774.23255599,5.643e-05,2]
[408478487,1773715846349,-3842.79780473,5.7e-05,2]
[408478567,1773717032281,-545.83712939,4.901e-05,2]
[408478569,1773717032336,-4454.16287061,4.901e-05,2]
[408478570,1773717032346,-3115.12886116,4.951e-05,2]
[408478571,1773717032355,-300.0,5.199e-05,2]
[408478573,1773717032366,-407.84102488,5.2e-05,2]
[408478575,1773717032375,-765.32124869,5.2e-05,2]
[408478763,1773717038408,-164.02228917,5.2e-05,2]
[408478764,1773717038419,-829.25257447,5.2e-05,2]
[408478765,1773717038429,-914.41134662,5.2e-05,2]
[408478766,1773717038442,-804.45111774,5.249e-05,2]
[408478767,1773717038470,-2601.54438766,5.249e-05,2]
[408478771,1773717042855,-459.26179122,5.249e-05,2]
[408478824,1773717046525,-774.98135193,5.249e-05,2]
[408478825,1773717046534,-500.0,5.313e-05,2]
[408478826,1773717046543,-500.0,5.323e-05,2]
[408478827,1773717046552,-194.05047397,5.323e-05,2]
[408478828,1773717046561,-257.57204686,5.323e-05,2]
[408478829,1773717046681,-484.14,5.197e-05,2]
[408478851,1773717430260,500.0,0.0001,120]
[408478852,1773717439142,500.0,0.0001,120]
[408478860,1773717593478,765.6,6e-05,30]
[408478885,1773718232497,-631.87264066,4.562e-05,2]
[408478887,1773718232509,-4368.12735934,4.562e-05,2]
[408478890,1773718232520,-634.4007719,4.608e-05,2]
[408478891,1773718232530,-1200.0,5.122e-05,2]
[408478893,1773718232540,-500.0,5.123e-05,2]
[408478895,1773718232550,-500.0,5.123e-05,2]
[408478897,1773718232559,-500.0,5.123e-05,2]
[408478899,1773718232569,-500.0,5.123e-05,2]
[408478901,1773718232579,-500.0,5.123e-05,2]
[408478902,1773718232588,-500.0,5.123e-05,2]
[408478903,1773718232597,-179.50471147,5.149e-05,2]
[408478904,1773718232609,-3754.63209204,5.149e-05,2]
[408478905,1773718232622,-931.85262945,5.149e-05,2]
[408478906,1773718232641,-756.52022176,5.149e-05,2]
[408478907,1773718232653,-840.97591378,5.149e-05,2]
[408478940,1773718238666,-1496.62,5.149e-05,2]
[408478942,1773718238678,-990.72703622,5.149e-05,2]
[408478954,1773718241145,-3161.85952668,5.149e-05,2]
[408478955,1773718241156,-2279.5,5.149e-05,2]
[408478956,1773718241197,-393.15903216,5.149e-05,2]
[408478961,1773718243376,-4388.82240905,5.149e-05,2]
[408479257,1773718246939,-4523.78118338,5.149e-05,2]
[408479260,1773718246951,-9255.28352557,5.149e-05,2]
[408479346,1773719431657,-941.76864296,4.114e-05,2]
[408479349,1773719431669,-594.54488708,4.114e-05,2]
[408479351,1773719431680,-3208.81236043,4.114e-05,2]
[408479355,1773719431710,-254.87410953,4.114e-05,2]
[408479357,1773719431719,-163.5709312,4.327e-05,2]
[408479359,1773719431728,-300.0,4.399e-05,2]
[408479361,1773719431737,-3642.83157855,4.4e-05,2]
[408479363,1773719431749,-638.62335588,4.4e-05,2]
[408479365,1773719431760,-2923.96696656,4.4e-05,2]
[408479408,1773719438107,-5000.0,4.356e-05,2]
[408479409,1773719438118,-6314.4342399,4.4e-05,2]
[408479410,1773719438130,-743.04,4.4e-05,2]
[408479411,1773719438145,-5737.10385911,4.4e-05,2]
[408479412,1773719438154,-420.0,4.839e-05,2]
[408479413,1773719438163,-52629.05523664,4.849e-05,2]
[408479430,1773719440260,-351.97239435,4.849e-05,2]
[408479647,1773719445854,-24808.97632093,4.849e-05,2]
[408479648,1773719445866,-540.92371165,4.849e-05,2]
[408479649,1773719446069,-7253.57184746,4.849e-05,2]
[408479650,1773719903897,1127.9,0.0001,120]
[408479651,1773719965828,1231.3,0.0001,120]
[408479652,1773719998325,1294.4,0.0001,120]
[408479653,1773720035700,1728.0,0.0001,120]
[408479654,1773720084605,-5000.0,3.823e-05,2]
[408479655,1773720084625,-706.9216284,3.901e-05,2]
[408479656,1773720084646,-742.7419971,3.962e-05,2]
[408479687,1773720631820,-500.0,4.582e-05,2]
[408479688,1773720631876,-891.0,4.582e-05,2]
[408479704,1773720637922,-1714.65998636,4.582e-05,2]
[408479705,1773720638032,-1894.34001364,4.582e-05,2]
[408479706,1773720638042,-500.0,4.623e-05,2]
[408479707,1773720638051,-500.0,4.623e-05,2]
[408479708,1773720638059,-500.0,4.623e-05,2]
[408479709,1773720638068,-189.39875689,4.647e-05,2]
[408479710,1773720638079,-290.60124311,4.647e-05,2]
[408479711,1773720638090,-236.0,4.648e-05,2]
[408479713,1773720638099,-300.0,4.648e-05,2]
[408479715,1773720638107,-10449.67802378,4.649e-05,2]
[408479827,1773720640457,-375.27166105,4.649e-05,2]
[408479828,1773720640551,-223.01766837,4.649e-05,2]
[408479840,1773720644029,-478.55877297,4.649e-05,2]
[408479841,1773720644042,-53723.73362528,4.649e-05,2]
[408479848,1773720646063,-5000.0,4.603e-05,2]
[408479849,1773720646075,-8625.62024007,4.649e-05,2]
[408479850,1773720646088,-84924.00459101,4.649e-05,2]
[408479851,1773720646103,-1929.10950984,4.649e-05,2]
[408479852,1773720646277,-13498.85854768,4.649e-05,2]
[408479864,1773721804809,162.73,2e-05,2]
[408479866,1773721823885,-2077.82054874,3.424e-05,2]
[408479899,1773721838379,-2922.17945126,3.424e-05,2]
[408479901,1773721838388,-5000.0,3.459e-05,2]
[408479902,1773721838398,-1188.82015215,3.493e-05,2]
[408479920,1773721840737,-11.17984785,3.493e-05,2]
[408479921,1773721840746,-300.0,3.56e-05,2]
[408479922,1773721840756,-99.03439154,3.56e-05,2]
[408479938,1773721843308,-200.96560846,3.56e-05,2]
[408479939,1773721843322,-237.90460723,3.56e-05,2]
[408479940,1773721843365,-62.09539277,3.56e-05,2]
[408479941,1773721843375,-300.0,3.56e-05,2]
[408479942,1773721843644,-300.0,3.561e-05,2]
[408479943,1773721843653,-168.507079,3.601e-05,2]
[408479944,1773721843662,-300.0,3.672e-05,2]
[408479945,1773721843672,-300.0,3.672e-05,2]
[408479946,1773721843681,-300.0,3.672e-05,2]
[408479947,1773721843691,-300.0,3.672e-05,2]
[408479948,1773721843701,-300.0,3.672e-05,2]
[408479949,1773721843711,-300.0,3.672e-05,2]
[408479950,1773721843720,-300.0,3.672e-05,2]
[408479951,1773721843730,-300.0,3.672e-05,2]
[408479952,1773721843739,-300.0,3.672e-05,2]
[408479953,1773721843749,-300.0,3.672e-05,2]
[408479954,1773721843758,-300.0,3.672e-05,2]
[408479955,1773721843767,-300.0,3.672e-05,2]
[408479956,1773721843776,-300.0,3.672e-05,2]
[408479957,1773721843786,-300.0,3.672e-05,2]
[408479958,1773721843795,-300.0,3.672e-05,2]
[408479959,1773721843804,-168.507079,3.853e-05,2]
[408479960,1773721843813,-420.0,3.916e-05,2]
[408479961,1773721843822,-168.507079,4.106e-05,2]
[408479962,1773721843831,-324.6531636,4.238e-05,2]
[408479963,1773721843839,-587.0,4.308e-05,2]
[408479964,1773721843848,-168.507079,4.359e-05,2]
[408479965,1773721843857,-500.0,4.523e-05,2]
[408479966,1773721843867,-500.0,4.523e-05,2]
[408479967,1773721843876,-500.0,4.523e-05,2]
[408479968,1773721843890,-500.0,4.523e-05,2]
[408479969,1773721843899,-500.0,4.523e-05,2]
[408479970,1773721843909,-500.0,4.523e-05,2]
[408479971,1773721843918,-500.0,4.523e-05,2]
[408479972,1773721843929,-500.0,4.523e-05,2]
[408479973,1773721843938,-500.0,4.523e-05,2]
[408479974,1773721843957,-500.0,4.523e-05,2]
[408479975,1773721843969,-500.0,4.523e-05,2]
[408479976,1773721843979,-500.0,4.523e-05,2]
[408479977,1773721843991,-500.0,4.523e-05,2]
[408479978,1773721844003,-500.0,4.523e-05,2]
[408479979,1773721844014,-52537.89629078,4.549e-05,2]
[408479980,1773721844029,-8170.01993263,4.549e-05,2]
[408479987,1773721846203,-280.70606371,4.549e-05,2]
[408479988,1773721846216,-65027.97450267,4.549e-05,2]
[408479989,1773721846365,-6200.0,4.549e-05,2]
[408479990,1773721949486,229.37623523,2.88e-05,14]
[408479992,1773723003447,154.02,2e-05,2]
[408479993,1773723025037,5549.47,3e-05,10]
[408480019,1773723032181,-817.02994421,3.667e-05,2]
[408480177,1773723040665,-417.6234458,3.667e-05,2]
[408480198,1773723043475,-3765.34660999,3.667e-05,2]
[408480200,1773723043485,-281.00721637,3.704e-05,2]
[408480202,1773723043494,-3593.16824801,3.804e-05,2]
[408480204,1773723043504,-196.1308817,4.164e-05,2]
[408480206,1773723043514,-196.5356493,4.497e-05,2]
[408480208,1773723043523,-300.0,4.522e-05,2]
[408480210,1773723043531,-500.0,4.523e-05,2]
[408480212,1773723043541,-500.0,4.523e-05,2]
[408480214,1773723043550,-500.0,4.523e-05,2]
[408480215,1773723043559,-500.0,4.523e-05,2]
[408480217,1773723043568,-500.0,4.523e-05,2]
[408480219,1773723043577,-500.81953556,4.523e-05,2]
[408480221,1773723043586,-500.0,4.523e-05,2]
[408480223,1773723043595,-500.0,4.523e-05,2]
[408480225,1773723043604,-500.0,4.523e-05,2]
[408480227,1773723043614,-743.90192575,4.549e-05,2]
[408480229,1773723043623,-690.0,4.549e-05,2]
[408480231,1773723043632,-351.0,4.549e-05,2]
[408480233,1773723043641,-351.0,4.549e-05,2]